Cogmind - Beta 15 @@@ ROGUE MODE // 2025.05.10 @ 16:15:00 Player: GiggleBox Result: Destroyed by S-43 Plague with Heavy Machine Gun Performance ------------- Evolutions (7) 3500 Regions Visited (10) 2000 Robots Destroyed (80) 400 Value Destroyed (3701) 3701 Prototype IDs (38) 760 Alien Tech Used (0) 0 Bonus (2347) 2347 TOTAL SCORE: 12708 Bonus ------- Follower Combat Kills 100 Registered with UFD 300 Met Optimus in HQ 500 Met Warlord at Base 500 MAIN.C Attacked Warlord 500 Warlord Defense Kills 770 Friendly Fire -323 Cogmind --------- Core Integrity 0/1300 Matter 185/300 Energy 90/100 System Corruption 24% Temperature Cool (0) Movement Treading (145) Location -3/Research Parts ------- > --- POWER (2) -------- (None) > --- PROPULSION (6) --- Advanced Heavy Treads > --- UTILITY (9) ------ (None) > --- WEAPON (4) ------- (None) > --- INVENTORY (5) ---- Datajack Peak State ------------ > --- POWER ------------ Micro Antimatter Reactor Micro Antimatter Reactor > --- PROPULSION ------- Advanced Heavy Treads Advanced Heavy Treads Advanced Heavy Treads > --- UTILITY ---------- Experimental Heat Sink Large Storage Unit Advanced Signal Interpreter Long-range Terrain Scanner Surveybot 17 Chip Experimental Core Analyzer Advanced Force Field A0-MCA's Component Scanner Improved System Restoration Module > --- WEAPON ----------- Heavy Battle Rifle Heavy Battle Rifle Compact Linear Accelerator > --- INVENTORY -------- Advanced Heavy Treads Advanced Heat Sink Advanced Gravity Neutralizer Improved Targeting Computer Advanced Kinecellerator EM Disruption Field Datajack Plasma Lance DRS Beacon [Rating: 146] Favorites ----------- Power Improved Deuterium Engine Engine Improved Deuterium Engine Power Core Fission Core Reactor Micro Antimatter Reactor Propulsion Armored Medium Treads Treads Armored Medium Treads Leg Aluminum Leg Wheel Subdweller Monowheel Utility A0-MCA's Component Scanner Device Heat Sink Storage Large Storage Unit Processor A0-MCA's Component Scanner Protection Hardened Medium Armor Plating Weapon KE Penetrator Energy Gun Riot Gun Energy Cannon Subdweller Beam Cannon Ballistic Gun KE Penetrator Ballistic Cannon Compact Linear Accelerator Launcher Subdweller Shrapnel Launcher Special Weapon Enhanced Flamer Slashing Weapon Ripper Piercing Weapon Lance Special Melee Weapon Datajack Build | -11 -10 -10 -7 -5 -4 -4 -4 -4 -3 -3 ------- Run | Yrd Mat Sub Scr Fac Fac Upp Upp War Pro Res Slots Evolved 14 | . . . . 10 2 . . . . 2 Power 1 | . . . . 1 . . . . . . Propulsion 4 | . . . . 2 . . . . . 2 Utility 7 | . . . . 5 2 . . . . . Weapon 2 | . . . . 2 . . . . . . Parts Attached 90 | 8 5 9 8 13 16 8 1 6 3 13 Power 12 | 1 . 2 2 3 1 . . . . 3 Engine 8 | 1 . 2 2 3 . . . . . . Core 1 | . . . . . 1 . . . . . Reactor 3 | . . . . . . . . . . 3 Propulsion 19 | 2 . 3 2 1 4 2 . . . 5 Treads 12 | . . . 2 . 3 2 . . . 5 Leg 4 | 2 . . . 1 1 . . . . . Wheel 3 | . . 3 . . . . . . . . Hover . | . . . . . . . . . . . Flight . | . . . . . . . . . . . Utility 31 | 2 3 . 2 7 4 3 1 2 2 5 Device 20 | 1 2 . . 5 3 1 1 2 1 4 Storage 3 | 1 1 . 1 . . . . . . . Processor 7 | . . . 1 2 1 1 . . 1 1 Hackware . | . . . . . . . . . . . Protection 1 | . . . . . . 1 . . . . Artifact . | . . . . . . . . . . . Weapon 28 | 3 2 4 2 2 7 3 . 4 1 . Energy Gun 6 | 2 1 1 1 . . . . . 1 . Energy Cannon 5 | . . 1 . 1 3 . . . . . Ballistic Gun 10 | 1 . . . . 3 3 . 3 . . Ballistic Cannon 2 | . . 1 . . . . . 1 . . Launcher 1 | . . 1 . . . . . . . . Special Weapon 1 | . . . . 1 . . . . . . Impact Weapon . | . . . . . . . . . . . Slashing Weapon 1 | . . . 1 . . . . . . . Piercing Weapon 1 | . . . . . 1 . . . . . Special Melee Weapon 1 | . 1 . . . . . . . . . Unidentified Prototypes . | . . . . . . . . . . . Corrupted Parts 1 | . . . . . . 1 . . . . System Corruption 3 | . . . . . . 3 . . . . Parts Lost 41 | . . 8 . 5 6 3 . . 6 13 Power 8 | . . 3 . . . . . . 2 3 Propulsion 9 | . . 2 . 1 3 . . . 2 1 Utility 11 | . . 1 . . 3 2 . . 1 4 Weapon 13 | . . 2 . 4 . 1 . . 1 5 Highest Loss Streak 5 | . . 4 . 3 5 3 . . 3 5 To Critical Strikes 2 | . . . . . 1 . . . . 1 Average Backups 8 | 1 4 7 9 5 9 10 11 12 13 10 Power 1 | . 1 . . 1 2 2 2 2 1 . Propulsion . | . . . . . 1 . . . . . Utility 2 | . . . 2 1 3 4 3 3 5 5 Weapon 3 | . 1 4 4 1 1 3 5 6 5 2 Tool/Special . | . . . . . . . . . . . Unused Backups 9 | . . 2 1 . . . . 3 . 3 Power 1 | . . 1 . . . . . . . . Propulsion . | . . . . . . . . . . . Utility 5 | . . . 1 . . . . 2 . 2 Weapon 3 | . . 1 . . . . . 1 . 1 Tool/Special . | . . . . . . . . . . . Average Slot Usage (%) 90 | . 100 94 74 89 89 93 100 100 91 70 Engine 9 | . 14 13 8 11 5 5 5 5 9 4 Core 1 | . . . . . 4 5 5 5 . . Treads 10 | . . . 16 10 12 17 21 21 12 11 Leg 7 | . 28 16 . 4 4 . . . . . Wheel 1 | . . 6 . . . . . . . . Device 14 | . 14 14 6 18 24 20 15 15 10 11 Storage 9 | . 14 14 14 5 5 5 5 5 5 3 Processor 10 | . . . 7 13 15 18 21 21 25 19 Protection 1 | . . . . . . . 5 5 4 1 Energy Gun 9 | . 26 11 12 9 1 . . . 3 2 Energy Cannon 2 | . . 9 . 4 2 . . 1 . . Ballistic Gun 5 | . 1 . . . 5 14 21 19 15 10 Launcher 1 | . . 6 . . . . . . . . Slashing Weapon 1 | . . . 6 4 1 . . . . . Peak Build Rating 146 | 7 7 13 31 73 110 98 88 106 111 146 Average Rating 51 | 5 7 11 20 68 93 91 87 93 103 104 On Entrance 52 | . 7 7 7 31 59 87 88 88 106 99 Naked Turns 22 | . . . . . . . . . . 22 Heaviest Build 80 | 13 18 34 37 64 75 68 70 80 75 71 Greatest Support 210 | 20 20 20 36 36 77 100 100 100 100 210 Greatest Overweight (x) 12 | . . 8 12 3 2 . . . 1 1 Average Overweight (x) . | . . 1 2 2 . . . . . . Largest Inventory Capacity 15 | 8 10 10 15 15 15 15 15 15 15 15 Average Capacity 12 | 7 9 10 10 15 15 15 15 15 15 13 Most Carried 15 | 2 6 10 11 10 15 15 14 15 15 15 Average Carried 9 | 1 4 8 10 6 11 12 13 14 14 11 Final Capacity 15 | 8 10 10 15 15 15 15 15 15 15 5 Final Carried 15 | 2 5 8 11 9 13 13 14 15 13 1 Class Distribution -------------------- 40% | Mutant 13% | Scavenger-Tank 10% | Derelict-Mutant 8% | Scavenger-Gunner 7% | Scavenger-Assassin 6% | Derelict-Skirmisher 5% | Assassin 3% | Derelict-Assassin Dominant Class ---------------- Mutant | -10/Materials Mutant | -10/Subcaves Derelict-Mutant | -7/Scraptown Derelict-Skirmisher | -5/Factory Assassin | -4/Factory Scavenger-Assassin | -4/Upper Caves Scavenger-Tank | -4/Upper Caves Scavenger-Tank | -4/Warlord Scavenger-Gunner | -3/Proximity Caves Scavenger-Tank | -3/Research Resources | -11 -10 -10 -7 -5 -4 -4 -4 -4 -3 -3 ----------- Run | Yrd Mat Sub Scr Fac Fac Upp Upp War Pro Res Matter Collected 2536 | 287 83 239 110 165 257 229 206 200 472 288 Remotely . | . . . . . . . . . . . Salvage Created 3841 | 103 214 280 . 670 509 164 222 283 649 747 Parts 206 | 7 26 12 . 21 28 4 7 17 34 50 Haulers Intercepted . | . . . . . . . . . . . Recyclers Shooed 1 | . . . . . 1 . . . . . Parts Field Recycled . | . . . . . . . . . . . Retrieved Matter . | . . . . . . . . . . . Parts Self-Destructed 50 | . . 9 . . . . 8 . 33 . Prevented 1 | . . 1 . . . . . . . . Kills | -11 -10 -10 -7 -5 -4 -4 -4 -4 -3 -3 ------- Run | Yrd Mat Sub Scr Fac Fac Upp Upp War Pro Res Combat Hostiles Destroyed 63 | . 9 6 . 8 8 1 2 5 14 10 Melee 2 | . . . . . 1 . . . . 1 Guns 39 | . 8 2 . 1 2 1 2 4 12 7 Cannons 14 | . . 2 . 3 4 . . 1 2 2 AOE 3 | . 1 2 . . . . . . . . Classes Destroyed 17 | 2 3 3 . 2 1 2 . 3 . 1 Worker 4 | . 2 . . 1 1 . . . . . Builder 1 | . . . . . . . . . . 1 Tunneler 3 | 2 . . . . . . . . . 1 Recycler 3 | 1 . . . 1 . . . . . 1 Turret 1 | . . 1 . . . . . . . . Watcher 3 | . 2 . . . . . . . . 1 Swarmer 19 | . 9 . . . . . . . 10 . Saboteur 1 | . . . . . . . . 1 . . Grunt 12 | . . . . 3 . . 3 2 3 1 Sentry 6 | . . 1 . 1 3 . . . 1 . Hunter 5 | . . . . . 2 . . . . 3 Programmer 13 | . . . . 4 3 . . . . 6 Striker 1 | . . . . . . . . 1 . . Executioner 1 | . . . . . . . . 1 . . Subdweller 5 | . . 5 . . . . . . . . Savage 1 | . . . . . . 1 . . . . Mutant 1 | . . . . . . 1 . . . . Best Kill Streak 7 | 3 4 1 . 3 4 1 2 2 6 7 Combat Bots Only 6 | . 3 1 . 2 2 1 2 2 6 5 Max Kills in Single Turn 2 | 1 2 1 . 1 1 1 1 1 2 2 Gunslinging . | . . . . . . . . . . . Exploded 1 | . 1 1 . . . . . . . . Melee 1 | . . . . . 1 . . . . 1 Uniques/NPCs Destroyed . | . . . . . . . . . . . Combat | -11 -10 -10 -7 -5 -4 -4 -4 -4 -3 -3 -------- Run | Yrd Mat Sub Scr Fac Fac Upp Upp War Pro Res Hostile Shots Fired 622 | . 39 44 . 56 110 8 6 10 66 283 Missed 197 | . 9 15 . 16 33 . 1 4 18 101 Hits 425 | . 30 29 . 40 77 8 5 6 48 182 Melee 1 | . . . . . . . . . . 1 Projectile 424 | . 30 29 . 40 77 8 5 6 48 181 AOE 3 | . . . . . . . . 3 . . Critical Strikes 30 | . . 1 . 2 7 2 1 . 3 14 Part Disruptions 3 | . . . . . 1 1 . . . 1 Actively Blocked 1 | . . . . . 1 . . . . . Damage Taken 8903 | 6 234 564 . 858 1497 165 101 337 1038 4103 Core 1672 | . 66 69 . 45 102 . . 33 45 1312 Absorbed by Shields 255 | . . . . . . . . . . 255 Reduced by Siege Mode 44 | . . . . . . . . . . 44 Regen/Repaired (Parts) 83 | . . . . . . . . 83 . . Core Remaining (%) 81 | 100 . . 46 95 . . . . 84 . Volleys Fired 252 | 5 21 78 . 31 35 7 6 13 25 31 Largest 4 | 2 2 2 . 3 3 3 4 4 4 4 Hottest 223 | 60 80 130 . 223 218 201 124 204 204 174 Shots Fired 543 | 10 42 96 . 56 78 17 19 52 94 79 Gun 375 | 10 42 25 . 27 52 13 19 40 84 63 Cannon 160 | . . 63 . 29 26 4 . 12 10 16 Launcher 8 | . . 8 . . . . . . . . Special . | . . . . . . . . . . . Kinetic 290 | 5 . 12 . . 49 13 19 42 83 67 Thermal 157 | . . 73 . 34 17 . . 10 11 12 Explosive . | . . . . . . . . . . . Electromagnetic 96 | 5 42 11 . 22 12 4 . . . . Robot Hit Streak 28 | 3 3 12 . 28 11 11 8 10 9 8 Robot Miss Streak 7 | 2 3 1 . 4 6 1 2 2 7 3 Penetration Max 1 | . . . . . . . . 1 1 . Secondary Targets 6 | . 1 . . . 1 . 2 . . 2 Max Gunslinging Chain 1 | . 1 . . . 1 . 1 . . 1 Shots Hit Robots 317 | 5 19 31 . 46 51 23 13 36 43 50 Core Hits 170 | 3 14 13 . 25 27 7 8 18 30 25 Critical Kills 5 | . . . . . . . . 2 1 2 Critical Parts Destroyed 3 | . . . . . . . . . 2 1 Critical Strikes 14 | . . . . 2 . . . 3 4 5 Burn 2 | . . . . . . . . . 1 1 Destroy 8 | . . . . . . . . 2 3 3 Blast 2 | . . . . . . . . 1 . 1 Corrupt 2 | . . . . 2 . . . . . . Melee Attacks 37 | . . . . 12 6 11 . . . 8 Impact . | . . . . . . . . . . . Slashing 13 | . . . . 12 1 . . . . . Piercing 9 | . . . . . 5 4 . . . . Sneak Attacks 7 | . . . . . . 7 . . . . Combat Hostiles . | . . . . . . . . . . . Follow-up Attacks . | . . . . . . . . . . . Damage Inflicted 8312 | 133 354 755 . 1285 1393 407 360 994 1263 1368 Guns 5250 | 52 218 247 . 649 770 280 360 727 1052 895 Cannons 2229 | . . 107 . 575 516 127 . 267 211 426 Explosions 674 | 81 131 401 . 61 . . . . . . Melee 107 | . . . . . 107 . . . . . Ramming 52 | . 5 . . . . . . . . 47 Kinetic 4914 | 11 . 438 . . 716 280 360 813 1173 1123 Thermal 2106 | 81 131 183 . 883 359 . . 181 90 198 Explosive . | . . . . . . . . . . . Electromagnetic 1133 | 41 218 134 . 402 211 127 . . . . Impact . | . . . . . . . . . . . Slashing . | . . . . . . . . . . . Piercing 107 | . . . . . 107 . . . . . Highest Corruption 24 | . . . . 2 3 6 5 . . 24 Average Corruption 4 | . . . . 1 2 5 2 . . 8 Corruption Purged 8 | . . . . . . 1 5 . . 2 Corruption Blocked . | . . . . . . . . . . . Effects 38 | . . . . 4 4 20 . . . 10 Message Errors 8 | . . . . . 1 6 . . . 1 Matter Fused 8 | . . . . 1 . 3 . . . 4 Heat Flow Errors 5 | . . . . . 1 3 . . . 1 Energy Discharges 3 | . . . . 3 . . . . . . Parts Fused 1 | . . . . . . 1 . . . . Data Loss (minor) 8 | . . . . . 2 6 . . . . Misfires 1 | . . . . . . . . . . 1 Alerts 1 | . . . . . . 1 . . . . Misdirections 1 | . . . . . . . . . . 1 Weapon Failures 2 | . . . . . . . . . . 2 Overload Shots . | . . . . . . . . . . . Overflow Damage 8 | . . . . . . . . . . 8 Projectiles 8 | . . . . . . . . . . 8 Explosions . | . . . . . . . . . . . Melee . | . . . . . . . . . . . Knockbacks 3 | . . . . . . . . 1 1 1 Impact . | . . . . . . . . . . . Kinetic 3 | . . . . . . . . 1 1 1 Secondary . | . . . . . . . . . . . Self-Inflicted Damage 89 | 6 . 71 . . . . . . . 12 Shots 4 | 1 . 3 . . . . . . . . Rammed 9 | . . . . . . . . . . 9 Targets Rammed 12 | . 2 . . . . . . . . 10 Kicked 2 | . 2 . . . . . . . . . Crushed 1 | . . . . . . . . . . 1 Highest Temperature 306 | 12 90 3 . 286 306 240 20 156 108 185 Average Temperature 69 | 12 34 3 . 117 77 73 12 58 25 43 Received Heat Transfer 771 | . . 117 . 144 54 174 21 48 96 117 Siege Activations 2 | . . . . . . . . . . 2 Total Turns 7 | . . . . . . . . . . 7 Longest Duration 6 | . . . . . . . . . . 6 Martial Activations . | . . . . . . . . . . . Shielding Activations . | . . . . . . . . . . . Robots Disrupted . | . . . . . . . . . . . Combat Hostiles . | . . . . . . . . . . . Robots Corrupted 3 | . . . . 2 1 . . . . . Combat Hostiles 3 | . . . . 2 1 . . . . . Parts Fried 5 | . . . . 4 1 . . . . . Impact Corruptions . | . . . . . . . . . . . Robots Melted 2 | . . . . 2 . . . . . . Combat Hostiles 2 | . . . . 2 . . . . . . Parts Melted 11 | 1 . . . 8 . . . 1 . 1 Heat Transferred 3499 | 100 150 323 . 1571 370 . . 185 300 500 Parts Sabotaged . | . . . . . . . . . . . Parts Stolen . | . . . . . . . . . . . Parts Stripped . | . . . . . . . . . . . Power Chain Reactions 5 | 2 2 . . 1 . . . . . . Alert | -11 -10 -10 -7 -5 -4 -4 -4 -4 -3 -3 ------- Run | Yrd Mat Sub Scr Fac Fac Upp Upp War Pro Res Maximum Alert Level . | . . . . . . . . . . . Low Security (%) 100 | 100 100 . . 100 100 . . . . 100 Level 1 . | . . . . . . . . . . . Level 2 . | . . . . . . . . . . . Level 3 . | . . . . . . . . . . . Level 4 . | . . . . . . . . . . . Level 5 . | . . . . . . . . . . . High Security . | . . . . . . . . . . . Max Security . | . . . . . . . . . . . Peak Influence 142 | 10 93 . . 131 100 . . . . 142 Initial 49 | . . . . . 35 . . . . 49 Average 28 | 1 25 . . 29 32 . . . . 36 Influence Increases 1880 | 15 268 55 . 290 285 60 118 100 355 334 Destroy 0b10 Robot/C 1200 | . 180 40 . 160 160 . 80 100 280 200 Destroy 0b10 Robot/NC 70 | 15 20 . . 10 5 . . . . 20 Destroy Leader 206 | . 34 . . 40 50 . 10 . 30 42 Allied During Kill 28 | . . . . . . . 28 . . . Successful Hack 47 | . 18 . . 18 11 . . . . . Disable Machine 75 | . 15 . . 15 45 . . . . . Destroy Structure 59 | . 1 . . 32 14 . . . . 12 Partial Spotted 15 | . . . . . . . . . . 15 Lose Combat Pursuer 180 | . . 15 . 15 . 60 . . 45 45 Influence Decreases 1748 | 15 268 55 . 217 330 88 118 100 281 276 Entered New Map 74 | . . . . . 38 11 . . . 25 Time Decay 1424 | 15 268 55 . 177 232 77 118 100 241 141 Lost Part 250 | . . . . 40 60 . . . 40 110 Squads Dispatched 6 | . . . . 2 3 . . . . 1 Investigation . | . . . . . . . . . . . Extermination 5 | . . . . 2 2 . . . . 1 Reinforcement 1 | . . . . . 1 . . . . . Assault . | . . . . . . . . . . . Garrison . | . . . . . . . . . . . Intercept . | . . . . . . . . . . . Searches Triggered . | . . . . . . . . . . . Construction Impeded . | . . . . . . . . . . . Haulers Reinforced . | . . . . . . . . . . . Active Scanning Responses . | . . . . . . . . . . . Cargo Convoy Interrupts 1 | . . . . 1 . . . . . . Stealth | -11 -10 -10 -7 -5 -4 -4 -4 -4 -3 -3 --------- Run | Yrd Mat Sub Scr Fac Fac Upp Upp War Pro Res Distress Signals 5 | . . . . . . . . . . 5 Communications Jammed 42 | . . . . . 31 . . 8 . 3 Distress Signals 40 | . . . . . 29 . . 8 . 3 Times Spotted 137 | . 15 7 . 12 11 4 4 35 13 36 Peak Tracking Total 19 | . 3 2 . 4 3 4 4 10 4 19 Tactical Retreats 7 | . . 1 . 1 . 1 . . 1 3 Traps | -11 -10 -10 -7 -5 -4 -4 -4 -4 -3 -3 ------- Run | Yrd Mat Sub Scr Fac Fac Upp Upp War Pro Res Traps Triggered 5 | . . 2 . . 1 . . . . 2 Indirectly . | . . . . . . . . . . . Trap Hack Attempts 2 | . 2 . . . . . . . . . Triggered . | . . . . . . . . . . . Disarmed 1 | . 1 . . . . . . . . . Reprogrammed . | . . . . . . . . . . . Reused . | . . . . . . . . . . . Traps Extracted . | . . . . . . . . . . . Installed . | . . . . . . . . . . . Triggered . | . . . . . . . . . . . Most Traps Carried 1 | . . 1 1 . . . . . . . Machines | -11 -10 -10 -7 -5 -4 -4 -4 -4 -3 -3 ---------- Run | Yrd Mat Sub Scr Fac Fac Upp Upp War Pro Res Machines Disabled 8 | . 1 3 . 1 3 . . . . . Max in Single Turn 3 | . 1 3 . 1 1 . . . . . Machines Repaired . | . . . . . . . . . . . Machines Dismantled . | . . . . . . . . . . . Machines Sabotaged . | . . . . . . . . . . . Overloaded Fab Kills . | . . . . . . . . . . . Hacking | -11 -10 -10 -7 -5 -4 -4 -4 -4 -3 -3 --------- Run | Yrd Mat Sub Scr Fac Fac Upp Upp War Pro Res Machines Accessed 19 | . 6 2 3 6 1 1 . . . . Terminals 12 | . 6 . . 5 1 . . . . . Fabricators . | . . . . . . . . . . . Repair Stations 1 | . . . . 1 . . . . . . Recycling Units . | . . . . . . . . . . . Scanalyzers . | . . . . . . . . . . . Garrison Access . | . . . . . . . . . . . Total Hacks 63 | . 18 3 25 14 2 1 . . . . Successful 46 | . 10 3 25 5 2 1 . . . . Failed 17 | . 8 . . 9 . . . . . . Catastrophic 1 | . 1 . . . . . . . . . Database Lockouts . | . . . . . . . . . . . Manual 29 | . 15 . . 12 1 . . 1 . . Terminals 33 | . 18 . . 13 2 . . . . . Fabricators . | . . . . . . . . . . . Repair Stations 1 | . . . . 1 . . . . . . Recycling Units . | . . . . . . . . . . . Scanalyzers . | . . . . . . . . . . . Garrison Access . | . . . . . . . . . . . Terminal Hacks 33 | . 1 3 25 1 2 1 . . . . Record 26 | . . 1 25 . . . . . . . Open Door 2 | . . 1 . . . 1 . . . . Open DSF 1 | . . . . 1 . . . . . . Branch Access Points 1 | . . . . . 1 . . . . . Locate Traps 2 | . 1 . . . 1 . . . . . Release Object 1 | . . 1 . . . . . . . . Fabricator Hacks . | . . . . . . . . . . . Repair Station Hacks . | . . . . . . . . . . . Recycling Unit Hacks . | . . . . . . . . . . . Scanalyzer . | . . . . . . . . . . . Garrison Access Hacks . | . . . . . . . . . . . Unauthorized Hacks 13 | . 9 . . 4 . . . . . . Terminals 13 | . 9 . . 4 . . . . . . Botnet 4 | . 3 . . 1 . . . . . . Operators 2 | . 1 . . 1 . . . . . . Skim 7 | . 5 . . 2 . . . . . . Fabricators . | . . . . . . . . . . . Repair Stations . | . . . . . . . . . . . Recycling Units . | . . . . . . . . . . . Scanalyzers . | . . . . . . . . . . . Garrison Access . | . . . . . . . . . . . Data Cores Recovered . | . . . . . . . . . . . Used . | . . . . . . . . . . . Hacking Detections 13 | . 6 . . 6 1 . . . . . Full Trace Events . | . . . . . . . . . . . Feedback Events . | . . . . . . . . . . . Feedback Blocked . | . . . . . . . . . . . Robot Schematics Acquired . | . . . . . . . . . . . Robots Built . | . . . . . . . . . . . Authchips . | . . . . . . . . . . . Time . | . . . . . . . . . . . Total Robot Build Rating . | . . . . . . . . . . . Part Schematics Acquired . | . . . . . . . . . . . Parts Built . | . . . . . . . . . . . Authchips . | . . . . . . . . . . . Time . | . . . . . . . . . . . Total Part Build Rating . | . . . . . . . . . . . Parts Repaired . | . . . . . . . . . . . Time . | . . . . . . . . . . . Parts Recycled . | . . . . . . . . . . . Recycled Matter . | . . . . . . . . . . . Retrieved Matter . | . . . . . . . . . . . Retrieved Components . | . . . . . . . . . . . Parts Scanalyzed . | . . . . . . . . . . . Part Schematics Acquired . | . . . . . . . . . . . Parts Damaged . | . . . . . . . . . . . Bothacking | -11 -10 -10 -7 -5 -4 -4 -4 -4 -3 -3 ------------ Run | Yrd Mat Sub Scr Fac Fac Upp Upp War Pro Res Used RIF Installer . | . . . . . . . . . . . Robots Hacked 2 | . . . . . . . . . . 2 Non-combat . | . . . . . . . . . . . Combat 2 | . . . . . . . . . . 2 Robot Hacks Applied 3 | . . . . . . . . . . 3 parse_system 3 | . . . . . . . . . . 3 Relay Couplers Released . | . . . . . . . . . . . Fabnet Peak Effective % . | . . . . . . . . . . . Robots Rewired 4 | . . . . . . 4 . . . . Allies Hacked . | . . . . . . . . . . . Hacks Repelled . | . . . . . . . . . . . Allies | -11 -10 -10 -7 -5 -4 -4 -4 -4 -3 -3 -------- Run | Yrd Mat Sub Scr Fac Fac Upp Upp War Pro Res Total Allies 4 | . . . . . . 4 . . . . Largest Group 4 | . . . . . . 4 4 2 . . Highest-Rated Group 188 | . . . . . . 188 188 94 . . Highest-Rated Ally 47 | . . . . . . 47 47 47 . . Total Orders . | . . . . . . . . . . . Ally Attacks 20 | . . . . . . . 17 3 . . Total Damage 504 | . . . . . . . 405 99 . . Kills 2 | . . . . . . . 2 . . . Allies Corrupted . | . . . . . . . . . . . Allies Melted . | . . . . . . . . . . . Intel | -11 -10 -10 -7 -5 -4 -4 -4 -4 -3 -3 ------- Run | Yrd Mat Sub Scr Fac Fac Upp Upp War Pro Res Active Infowar (turns) 6352 | 34 1067 71 . 1247 745 564 317 919 983 405 Sensors 1827 | . . . . 518 745 564 . . . . Terrain 2975 | . . . . 1247 745 560 . . 154 269 Seismic 1172 | 34 1067 71 . . . . . . . . Jamming 3526 | . . . . 419 595 . 317 919 983 293 Robot Analysis Total . | . . . . . . . . . . . Derelict Logs Recovered 4 | . . . . . . 1 3 . . . Drone Launches . | . . . . . . . . . . . Drone Recoveries . | . . . . . . . . . . . Exploration | -11 -10 -10 -7 -5 -4 -4 -4 -4 -3 -3 ------------- Run | Yrd Mat Sub Scr Fac Fac Upp Upp War Pro Res Turns Passed 10898 | 124 1196 2320 1867 1249 745 642 361 919 983 492 Spaces Moved 5266 | 83 517 1265 944 525 289 345 203 502 362 231 Core 447 | 6 . 35 346 . . . . . . 60 Treads 2600 | . . . 598 190 229 345 203 502 362 171 Legs 1437 | 77 517 448 . 335 60 . . . . . Wheels 782 | . . 782 . . . . . . . . Hover . | . . . . . . . . . . . Flight . | . . . . . . . . . . . Fastest Speed 50 | 50 120 120 140 160 160 165 165 165 165 50 Average Speed 174 | 114 120 165 194 205 198 165 165 165 227 143 Slowest Speed 650 | 120 120 450 650 220 280 166 166 165 250 250 Overloaded Moves . | . . . . . . . . . . . Propulsion Burnouts . | . . . . . . . . . . . Robots Hopped . | . . . . . . . . . . . Potential Cave-ins . | . . . . . . . . . . . Cave-ins Triggered . | . . . . . . . . . . . Exploration Rate (%) 40 | 5 87 57 45 11 9 50 45 68 63 10 Regions Visited 10 Branch Regions 6 Pre-discovered Areas 1 | . 1 . . . . . . . . . Known Exits Taken 7 | . 1 . . 1 1 1 1 1 1 . Unknown Exits Taken 3 | 1 . 1 1 . . . . . . . Scrap Searched 16 | . . 8 3 . . 1 2 . 2 . Spaces Dug 29 | . . 12 . 11 2 4 . . . . Terrain Destroyed 221 | 5 1 160 . 16 6 4 . 4 20 5 Melee 17 | . . . . 11 2 4 . . . . Projectile 84 | . . 51 . 1 4 . . 4 20 4 AOE 119 | 5 1 109 . 4 . . . . . . Terrain Rammed . | . . . . . . . . . . . Walls Destroyed . | . . . . . . . . . . . Machines Disabled . | . . . . . . . . . . . Actions | -11 -10 -10 -7 -5 -4 -4 -4 -4 -3 -3 --------- Run | Yrd Mat Sub Scr Fac Fac Upp Upp War Pro Res Total 6460 | 97 1046 1391 977 621 380 385 215 568 459 321 Wait 666 | . 491 16 7 35 14 4 4 26 59 10 Move 5256 | 82 516 1264 943 524 288 344 202 501 361 231 Hop . | . . . . . . . . . . . Pick Up 58 | 2 3 13 8 3 8 3 2 9 3 4 Fast Attach 27 | 7 . . 4 2 6 2 . . . 6 Attach 41 | . . 6 1 8 6 4 1 . 4 11 Detach 7 | . . 1 2 . 1 . . . . 3 Swap 64 | 1 9 7 4 6 13 10 . 7 6 1 Drop 36 | . 2 5 8 . 3 . . 12 1 5 Fire 252 | 5 21 78 . 31 35 7 6 13 25 31 Melee 37 | . . . . 12 6 11 . . . 8 Ram 4 | . . . . . . . . . . 4 Kick 2 | . 2 . . . . . . . . . Crush 7 | . . . . . . . . . . 7 Escape Stasis . | . . . . . . . . . . . Rewire . | . . . . . . . . . . . Trap 2 | . 2 . . . . . . . . . Miscellaneous 1 | . . 1 . . . . . . . . Route ------- -11/Scrapyard -10/Materials (discovered 5 exits: [*Mat x3] / [*Min] / *Sub) -10/Subcaves (discovered 4 exits: *Mat x2 / [*Rec] / *Scr) -7/Scraptown -5/Factory -4/Factory (discovered 2 exits: *Upp x2) -4/Upper Caves -4/Upper Caves (discovered 2 exits: *Res / *War) -4/Warlord -3/Proximity Caves -3/Research History --------- Turn | Location | Event 6 | -11/Scrapyard | Discovered new exit (range 15) 125 | -11/Scrapyard | Entered Materials 335 | -10/Materials | Build established: Mutant 338 | -10/Materials | Discovered new exit (range 3) 407 | -10/Materials | Discovered new exit (range 8) 476 | -10/Materials | Discovered new exit (range 10) 642 | -10/Materials | Discovered new exit (range 6) 799 | -10/Materials | Loaded intel: 26 non-interactive machine locations 869 | -10/Materials | Learned location of Subcaves (-10) 930 | -10/Materials | Learned location of 2 exits from Mines 982 | -10/Materials | Learned Storage emergency access door positions 1201 | -10/Materials | Identified exit to Subcaves 1201 | -10/Materials | Learned location of 1 exit from Materials 1321 | -10/Materials | Entered Subcaves 1322 | -10/Subcaves | Shifting Twisted Machinery released Humpback 1322 | -10/Subcaves | Approached by a straggling Scientist 1322 | -10/Subcaves | Identified exit to Materials 1425 | -10/Subcaves | Lost 4 parts (1p1u2w) 1720 | -10/Subcaves | Shifting Twisted Machinery released Enh. Flamer 1729 | -10/Subcaves | Shifting Twisted Machinery released Battle Rifle 1997 | -10/Subcaves | Released subatomizers from SUBCON Basin 2089 | -10/Subcaves | A swath of the cavern ceiling suddenly collapsed 3183 | -10/Subcaves | Discovered new exit (range 16) 3534 | -10/Subcaves | Ambushed by Subdweller buried in earth 3537 | -10/Subcaves | Core integrity fell below 50% 3629 | -10/Subcaves | Scientist uncovered a shortcut to Scraptown 3641 | -10/Subcaves | Entered Scraptown 3781 | -7/Scraptown | Heard Great Nut preacher, LISTEN AND RECITE! 3825 | -7/Scraptown | Visited UFD Registry 3825 | -7/Scraptown | Registered with UFD as "Thermohacker" 3891 | -7/Scraptown | Visited Cartography Club 3996 | -7/Scraptown | Found Surveybot 17 Chip 4087 | -7/Scraptown | Visited LU-1G1's Boring Crew 4230 | -7/Scraptown | Visited Observation Area 4337 | -7/Scraptown | Visited DA-N13 Charitable Foundation 4367 | -7/Scraptown | Found DCF Scrap (28 items) 4446 | -7/Scraptown | Visited A0-MCA Data Center 4455 | -7/Scraptown | Given a B- rating by A0-MCA 4461 | -7/Scraptown | Found A0-MCA's Component Scanner 4492 | -7/Scraptown | Visited Infowarlord's Domain 4502 | -7/Scraptown | Found Exp. Terrain Scanner 4528 | -7/Scraptown | Visited Derelict Rescue Squad 4694 | -7/Scraptown | Build established: Derelict-Mutant 4725 | -7/Scraptown | Visited Botcube Research 4767 | -7/Scraptown | Visited Science Testing Area 4804 | -7/Scraptown | Visited Curators Association 5332 | -7/Scraptown | Found DRS Beacon 5388 | -7/Scraptown | Met Optimus 5388 | -7/Scraptown | Accepted into 0bPrime 5498 | -7/Scraptown | Discovered new exit (range 3) 5508 | -7/Scraptown | Entered Factory 5508 | -5/Factory | Evolved 10 slots: Power x1, Propulsion x2, Utility x5, Weapon x2 5814 | -5/Factory | Build established: Derelict-Skirmisher 6538 | -5/Factory | Build established: Derelict-Assassin 6612 | -5/Factory | Cargo convoy interrupted 6614 | -5/Factory | Discovered new exit (range 30) 6669 | -5/Factory | Lost 3 parts (1n2w) 6756 | -5/Factory | Identified exit to Factory 6757 | -5/Factory | Entered another Factory area 6757 | -4/Factory | Evolved 2 slots: Utility x2 6802 | -4/Factory | Discovered new exit (range 27) 6936 | -4/Factory | Build established: Assassin 7254 | -4/Factory | Identified exit to Upper Caves 7387 | -4/Factory | Lost 5 parts (2n3u) 7502 | -4/Factory | Entered Upper Caves 7523 | -4/Upper Caves | Build established: Scavenger-Assassin 7749 | -4/Upper Caves | Encountered a Warlord checkpoint 7813 | -4/Upper Caves | Learned 4 Research zone layouts 7953 | -4/Upper Caves | Discovered new exit (range 29) 8036 | -4/Upper Caves | Identified exit to Upper Caves 8060 | -4/Upper Caves | Attacked by a delusional Derelict stockpiling Unaware 8097 | -4/Upper Caves | Lost 3 parts (2u1w) 8144 | -4/Upper Caves | Entered another Upper Caves area 8144 | -4/Upper Caves | Accompanied by 4 allies 8144 | -4/Upper Caves | Discovered new exit (range 7) 8153 | -4/Upper Caves | Identified exit to Research 8161 | -4/Upper Caves | Identified exit to Warlord 8418 | -4/Upper Caves | Build established: Scavenger-Tank 8438 | -4/Upper Caves | Learned Research stockpile data 8481 | -4/Upper Caves | Learned 4 Research zone layouts 8505 | -4/Upper Caves | Entered Warlord 8505 | -4/Warlord | Accompanied by 2 allies 8637 | -4/Warlord | Received a Watcher feed algorithm from an ecstatic Tinkerer 8639 | -4/Warlord | Ran a Watcher feed algorithm 8799 | -4/Warlord | Rebuked by Warlord 8824 | -4/Warlord | Warlord's base attacked by MAIN.C 9083 | -4/Warlord | P-80 Master assimilated allied NE-X3T(Y) 9174 | -4/Warlord | Warlord forces counterattacked 9176 | -4/Warlord | Lost 3 allies 9209 | -4/Warlord | Spotted Executioner 9226 | -4/Warlord | Spotted Striker 9234 | -4/Warlord | Destroyed Striker 9297 | -4/Warlord | Lost 6 allies 9303 | -4/Warlord | Discovered new exit (range 15) 9326 | -4/Warlord | Spotted Executioner 9326 | -4/Warlord | Spotted Striker 9343 | -4/Warlord | Destroyed Executioner 9353 | -4/Warlord | Found Adv. Kinecellerator 9356 | -4/Warlord | Found Exp. Core Analyzer 9374 | -4/Warlord | Lost 8 allies 9400 | -4/Warlord | Identified exit to Proximity Caves 9424 | -4/Warlord | Entered Proximity Caves 9452 | -3/Proximity Caves | Spotted B-86 Titan 9610 | -3/Proximity Caves | Lost 3 parts (2p1n) 9694 | -3/Proximity Caves | Attracted the attention of an 0b10 checkpoint 9746 | -3/Proximity Caves | Build established: Scavenger-Gunner 10395 | -3/Proximity Caves | Discovered exit to Research (range 5) 10407 | -3/Proximity Caves | Entered Research 10407 | -3/Research | Evolved 2 slots: Propulsion x2 10731 | -3/Research | Lost 5 parts (1p2u2w) 10833 | -3/Research | System corruption reached 10% 10834 | -3/Research | Released all parts (15) 10853 | -3/Research | Core integrity fell below 50% 10867 | -3/Research | Core integrity fell below 20% 10879 | -3/Research | Lost 4 parts (2u2w) 10899 | -3/Research | Destroyed by S-43 Plague with Heavy Machine Gun Last Messages --------------- Reading system data... 10876_ System corrupted: Matter fused (-6). 10877_ Jacked P-80 Master... >>parse_system Reading system data... 10878_ Jacked S-43 Plague... 10881_ Jacked P-80 Master... >>parse_system Reading system data... 10883_ Jacked P-80 Master... 10885_ Slammed into P-80 Master. 10886_ Crushed P-80 Master. 10886_ P-80 Master destroyed. 10887_ Acquired 47 matter. 10888_ Slammed into P-80 Master. 10890_ Adv. Heavy Treads destroyed. 10890_ Slammed into P-80 Master. 10895_ Slug penetrates G-67 Veteran. 10895_ Slug penetrates B-74 Champion. 10895_ Penetrated by Slug. Map ----- +----------------------------------------------------+ | ??????????????????????????????? ????????????????? | | ??????????????????????????????? ????????????????? | | ??????????????????????????????? #??##????????????? | | ???????????????????????????#### #? ?????????????? | | ??????????????????????????? +? ??????????????? | | ???????????????????????????# # ??????????????? | | ???????????????????????????# # ???????????????? | | ???????????????????????????# "????????????????? | | ???????????????????????????# #????????????????? | | ???????????????????????????# #????????????????? | | ???????????????????????????# #????????????????? | | ???????????????????????????# #??????#########?? | | ???????????????????????????# #??????# #?? | | ???????????????????????????# ##"######## #?? | | ???????????????????????????# ## # #?? | | ???????????????????????????# ##= # #?? | | ???????????????????????????# ## # #?? | | ???????????????????????????# ## # !#?? | | ???????????????????????????# ## # !! #?# | | ???????????????????????????# ## # ! #?? | | ???????????????????????????# ## # #?# | | ???????????????????????????# ## # ?## | | ??????????????????##########*## # ????# | | ??????????????????# # ######+######+####### | | ??????????????????# #[ | | ??????????????????# "" @ # ^ | | ??????????????????# """ s# | | ??????????????????# S" sp | | ??????????????????# | """ # ########### | | ??????????????????# """ # s ######## | | ??????????????????# # ######## | | ??????????????????# # ] # | | ??????????????????########## # | | ???????????????????????????# # | | ???????????????????????????# + | | ???????????????????????????# # | | ?????????????????????????### """ """ # | | ????????????????????????#### """ """ # | | ???????????????????????##### """ """ #### | | ?????????????????????? #### | | ??????????????????????###### #### | | ????????????????????#?###### #### | | ???????????????????##??##### """ #### | | ??????????????????? ##?#?### """ #### | | ????????????????????######## """ # | | ?????????????????? ?######## # | | ?????????????????? ########"" # | | ????????????????"? ########"" # * | | ???????????????? ########"" """ + | | ???????????????? ? #?######G """ # | +----------------------------------------------------+ Best States ------------- Heat Dissipation 72 Energy Generation 35 Energy Capacity 500 Matter Stores 300 Matter Capacity 300 Sight Range 16 Robot Scan Range 16 Terrain Scan Range 30 Terrain Scan Density 1210 Jamming Range 14 EM Shielding 3 Armor Coverage 225 Evasion (%) 55 Targeting Accuracy 6 Core Analysis 11 Recoil Reduction 6 Kinecelleration 50 Item Schematics ----------------- None Robot Schematics ------------------ None Fabricated ------------ Nothing Repaired ---------- Nothing Alien Tech Used ----------------- None Achievements -------------- Oh No You Don't! Challenges ------------ None Game ------ Seed ShadeGravityBroadsword Manual? 0 Play Time 01:16:16 Cumulative 83.3 hours Start 2025.05.10 @ 15:01:43 End 2025.05.10 @ 16:15:00 Sessions 1 Manual Loads 0 Difficulty Rogue Special Mode None Game No. 90 Rogue 90 Adventurer 0 Explorer 0 Win Type - Total 1 Types 1/0/0/0/0/0/0/0/0/0 Lore% 44 Gallery% 48 Achievement% 41 Wizard Run 0 Options --------- Layout 0 ASCII 0 Keyboard 1 Movement Numpad Keybinds 0 Fullscreen 1 Font 24/Terminus Map View 76x50 Zoom Use 0% Tactical HUD 1 Map Filters NONE Filters NONE Steam 1 RUN: 9ce30d99-275c-414a-89db-c9e6df5665e4